fUSD/lending_fUSD_20241219
["ID","MTS","AMOUNT","RATE_DAILY","PERIOD"]
[346035772,1734648636594,-500.0,0.00023993,4]
[346035773,1734648636603,-500.0,0.00023993,4]
[346035774,1734648636613,-500.0,0.00023993,4]
[346035775,1734648636624,-500.0,0.00023993,4]
[346035776,1734648636634,-500.0,0.00023993,4]
[346035777,1734648636644,-898.54,0.00023993,4]
[346035778,1734648636655,-500.0,0.00023993,4]
[346035779,1734648636664,-547.3,0.00023993,4]
[346035780,1734648636675,-500.0,0.00023993,4]
[346035781,1734648636684,-500.0,0.00023993,4]
[346035782,1734648636694,-500.0,0.00023993,4]
[346035783,1734648636704,-500.0,0.00023993,4]
[346035784,1734648636713,-500.0,0.00023993,4]
[346035785,1734648636722,-500.0,0.00023993,4]
[346035786,1734648636731,-500.0,0.00023993,4]
[346035787,1734648636740,-500.0,0.00023993,4]
[346035788,1734648636750,-500.0,0.00023993,4]
[346035789,1734648636759,-500.0,0.00023993,4]
[346035790,1734648636770,-564.03,0.00023993,4]
[346035791,1734648636780,-500.0,0.00023993,4]
[346035792,1734648636791,-500.0,0.00023993,4]
[346035793,1734648636801,-500.0,0.00023993,4]
[346035794,1734648636810,-500.0,0.00023993,4]
[346035795,1734648636821,-500.0,0.00023993,4]
[346035796,1734648636830,-500.0,0.00023993,4]
[346035797,1734648636839,-500.0,0.00023993,4]
[346035798,1734648636849,-500.0,0.00023993,4]
[346035799,1734648636858,-500.0,0.00023993,4]
[346035800,1734648636867,-152.009831,0.00023993,7]
[346035801,1734648636877,-500.0,0.00023993,4]
[346035802,1734648636887,-197.867834,0.00023993,7]
[346035803,1734648636897,-509.03163499,0.00023993,4]
[346035804,1734648636907,-500.0,0.00023993,4]
[346035805,1734648636919,-500.0,0.00023993,4]
[346035806,1734648636928,-500.0,0.00023993,4]
[346035807,1734648636938,-197.867834,0.00023993,7]
[346035808,1734648636947,-2708.66,0.00023993,4]
[346035809,1734648636956,-503.17,0.00023993,4]
[346035810,1734648636967,-653.94,0.00023993,4]
[346035811,1734648636979,-500.0,0.00023993,4]
[346035812,1734648636988,-500.0,0.00023993,4]
[346035813,1734648636999,-500.0,0.00023993,4]
[346035814,1734648637008,-546.91,0.00023993,4]
[346035815,1734648637019,-500.0,0.00023993,4]
[346035816,1734648637028,-500.0,0.00023993,4]
[346035817,1734648637038,-500.0,0.00023993,4]
[346035818,1734648637049,-151.0,0.00023993,7]
[346035819,1734648637058,-456.10094772,0.00023993,4]
[346035820,1734648637067,-1246.51,0.00023993,4]
[346035821,1734648637079,-500.0,0.00023993,4]
[346035822,1734648637088,-500.0,0.00023993,4]
[346035823,1734648637097,-500.0,0.00023993,4]
[346035824,1734648637107,-500.0,0.00023993,4]
[346035825,1734648637116,-500.0,0.00023993,4]
[346035826,1734648637125,-500.0,0.00023993,4]
[346035827,1734648637134,-500.0,0.00023993,4]
[346035828,1734648637143,-627.26877512,0.00023993,4]
[346035829,1734648637153,-500.0,0.00023993,4]
[346035830,1734648637162,-500.0,0.00023993,4]
[346035831,1734648637172,-500.0,0.00023993,4]
[346035832,1734648637181,-500.0,0.00023993,4]
[346035833,1734648637190,-500.0,0.00023993,2]
[346035834,1734648637200,-151.0,0.00023993,7]
[346035835,1734648637209,-151.0,0.00023993,7]
[346035836,1734648637218,-500.0,0.00023993,4]
[346035837,1734648637227,-151.598663,0.00023993,7]
[346035838,1734648637236,-500.0,0.00023993,4]
[346035839,1734648637247,-500.0,0.00023993,4]
[346035840,1734648637257,-159.064382,0.00023993,7]
[346035841,1734648637266,-151.0,0.00023993,7]
[346035842,1734648637276,-500.0,0.00023993,4]
[346035843,1734648637285,-500.0,0.00023993,4]
[346035844,1734648637294,-500.0,0.00023993,4]
[346035845,1734648637303,-500.0,0.00023993,4]
[346035846,1734648637313,-500.0,0.00023993,4]
[346035847,1734648637325,-500.0,0.00023993,4]
[346035848,1734648637336,-742.57,0.00023993,4]
[346035849,1734648637344,-500.0,0.00023993,2]
[346035850,1734648637353,-500.0,0.00023993,2]
[346035851,1734648637363,-500.0,0.00023993,2]
[346035852,1734648637372,-449.81861178,0.00023993,2]
[346035853,1734648637381,-639.08,0.00023994,4]
[346035854,1734648637390,-295.08953104,0.00023994,4]
[346035855,1734648637400,-500.0,0.00023994,4]
[346035856,1734648637409,-299.02,0.00023994,4]
[346035857,1734648637418,-500.0,0.00023994,4]
[346035858,1734648637427,-500.0,0.00023994,4]
[346035859,1734648637437,-500.0,0.00023994,4]
[346035860,1734648637446,-500.0,0.00023994,4]
[346035861,1734648637455,-500.0,0.00023994,4]
[346035862,1734648637464,-500.0,0.00023994,4]
[346035863,1734648637472,-500.0,0.00023994,4]
[346035864,1734648637482,-500.0,0.00023994,4]
[346035865,1734648637491,-500.0,0.00023994,4]
[346035866,1734648637501,-500.0,0.00023994,4]
[346035867,1734648637510,-500.0,0.00023994,4]
[346035868,1734648637519,-500.0,0.00023994,4]
[346035869,1734648637528,-500.0,0.00023994,4]
[346035870,1734648637537,-500.0,0.00023994,4]
[346035871,1734648637546,-500.0,0.00023994,4]
[346035872,1734648637555,-500.0,0.00023994,4]
[346035873,1734648637565,-500.0,0.00023994,4]
[346035874,1734648637576,-500.0,0.00023994,4]
[346035875,1734648637585,-500.0,0.00023994,4]
[346035876,1734648637594,-500.0,0.00023994,4]
[346035877,1734648637603,-500.0,0.00023994,4]
[346035878,1734648637612,-500.0,0.00023994,4]
[346035879,1734648637621,-500.0,0.00023994,4]
[346035880,1734648637630,-500.0,0.00023994,4]
[346035881,1734648637639,-500.0,0.00023994,4]
[346035882,1734648637648,-500.0,0.00023994,4]
[346035883,1734648637657,-500.0,0.00023994,4]
[346035884,1734648637666,-500.0,0.00023994,4]
[346035885,1734648637675,-500.0,0.00023994,4]
[346035886,1734648637684,-500.0,0.00023994,4]
[346035887,1734648637693,-500.0,0.00023994,4]
[346035888,1734648637703,-500.0,0.00023994,4]
[346035889,1734648637712,-500.0,0.00023994,4]
[346035890,1734648637721,-500.0,0.00023994,4]
[346035891,1734648637730,-500.0,0.00023994,4]
[346035892,1734648637739,-499.23948345,0.00023994,4]
[346035893,1734648637749,-500.0,0.00023994,4]
[346035894,1734648637758,-500.0,0.00023994,4]
[346035895,1734648637767,-500.0,0.00023994,4]
[346035896,1734648637776,-500.0,0.00023994,4]
[346035897,1734648637785,-500.0,0.00023994,4]
[346035898,1734648637794,-500.0,0.00023994,4]
[346035899,1734648637803,-151.0,0.00023994,7]
[346035900,1734648637814,-500.0,0.00023994,4]
[346035901,1734648637825,-151.0,0.00023994,7]
[346035902,1734648637834,-500.0,0.00023994,4]
[346035903,1734648637843,-500.0,0.00023994,4]
[346035904,1734648637852,-500.0,0.00023994,4]
[346035905,1734648637861,-500.0,0.00023994,4]
[346035906,1734648637870,-500.0,0.00023994,4]
[346035907,1734648637879,-500.0,0.00023994,4]
[346035908,1734648637888,-500.0,0.00023994,4]
[346035909,1734648637898,-500.0,0.00023994,4]
[346035910,1734648637907,-500.0,0.00023994,4]
[346035911,1734648637917,-500.0,0.00023994,4]
[346035912,1734648637927,-500.0,0.00023994,4]
[346035913,1734648637937,-151.0,0.00023994,7]
[346035914,1734648637946,-500.0,0.00023994,4]
[346035915,1734648637955,-157.05627,0.00023994,7]
[346035916,1734648637965,-500.0,0.00023994,4]
[346035917,1734648637978,-151.0,0.00023994,7]
[346035918,1734648637987,-500.0,0.00023994,4]
[346035919,1734648637996,-500.0,0.00023994,4]
[346035920,1734648638006,-500.0,0.00023994,4]
[346035921,1734648638016,-500.0,0.00023994,4]
[346035922,1734648638025,-500.0,0.00023994,4]
[346035923,1734648638035,-500.0,0.00023994,4]
[346035924,1734648638044,-500.0,0.00023994,4]
[346035925,1734648638055,-500.0,0.00023994,4]
[346035926,1734648638064,-307.79796155,0.00023994,4]
[346035927,1734648638075,-500.0,0.00023994,4]
[346035928,1734648638085,-500.0,0.00023994,2]
[346035929,1734648638095,-500.0,0.00023994,4]
[346035930,1734648638104,-500.0,0.00023994,4]
[346035931,1734648638114,-500.0,0.00023994,4]
[346035932,1734648638123,-151.0,0.00023994,7]
[346035933,1734648638133,-500.0,0.00023994,4]
[346035934,1734648638142,-500.0,0.00023994,4]
[346035936,1734648638152,-500.0,0.00023994,4]
[346035938,1734648638161,-501.86310041,0.00023994,4]
[346035939,1734648638171,-500.0,0.00023994,4]
[346035940,1734648638180,-500.0,0.00023994,4]
[346035941,1734648638190,-500.0,0.00023994,4]
[346035942,1734648638199,-500.0,0.00023994,4]
[346035943,1734648638208,-500.0,0.00023994,4]
[346035950,1734648638253,-500.0,0.00023994,4]
[346035952,1734648638263,-500.0,0.00023994,4]
[346035954,1734648638272,-505.82288049,0.00023994,4]
[346035956,1734648638281,-503.04850975,0.00023994,4]
[346035958,1734648638290,-507.81231963,0.00023994,4]
[346035960,1734648638299,-500.0,0.00023994,4]
[346035962,1734648638308,-500.0,0.00023994,4]
[346035963,1734648638317,-535.15,0.00023994,4]
[346035965,1734648638328,-500.0,0.00023994,4]
[346035967,1734648638337,-500.0,0.00023994,4]
[346035969,1734648638346,-500.0,0.00023994,4]
[346035971,1734648638355,-500.0,0.00023994,4]
[346035973,1734648638365,-531.45,0.00023994,4]
[346035975,1734648638374,-500.0,0.00023994,4]
[346035977,1734648638383,-500.0,0.00023994,4]
[346035979,1734648638392,-500.0,0.00023994,4]
[346035980,1734648638401,-500.0,0.00023994,4]
[346035981,1734648638411,-500.0,0.00023994,4]
[346035982,1734648638419,-500.0,0.00023994,4]
[346035983,1734648638428,-500.0,0.00023994,4]
[346035984,1734648638437,-500.0,0.00023994,4]
[346035985,1734648638446,-500.0,0.00023994,4]
[346035986,1734648638455,-500.0,0.00023994,4]
[346035987,1734648638464,-647.4,0.00023994,4]
[346035988,1734648638473,-500.0,0.00023994,4]
[346035989,1734648638482,-500.0,0.00023994,4]
[346035990,1734648638491,-197.867834,0.00023994,7]
[346035991,1734648638500,-500.0,0.00023994,4]
[346035992,1734648638509,-841.27,0.00023994,4]
[346035993,1734648638518,-197.867834,0.00023994,7]
[346035994,1734648638527,-858.35,0.00023994,4]
[346035995,1734648638536,-500.0,0.00023994,4]
[346035996,1734648638545,-500.0,0.00023994,4]
[346035997,1734648638555,-500.0,0.00023994,4]
[346035998,1734648638563,-500.0,0.00023994,4]
[346035999,1734648638574,-500.0,0.00023994,4]
[346036000,1734648638583,-1070.59,0.00023994,4]
[346036001,1734648638593,-500.0,0.00023994,4]
[346036002,1734648638602,-500.0,0.00023994,4]
[346036003,1734648638611,-1035.07,0.00023994,4]
[346036004,1734648638620,-500.0,0.00023994,4]
[346036006,1734648638629,-3375.11,0.00023994,4]
[346036008,1734648638639,-1111.71,0.00023994,4]
[346036010,1734648638648,-500.0,0.00023994,4]
[346036012,1734648638657,-151.0,0.00023994,7]
[346036014,1734648638667,-151.0,0.00023994,7]
[346036015,1734648638676,-500.0,0.00023994,4]
[346036017,1734648638685,-500.0,0.00023994,4]
[346036019,1734648638694,-500.0,0.00023994,4]
[346036021,1734648638703,-500.0,0.00023994,4]
[346036023,1734648638712,-500.0,0.00023994,4]
[346036025,1734648638722,-500.0,0.00023994,4]
[346036027,1734648638732,-500.0,0.00023994,2]
[346036029,1734648638743,-500.0,0.00023994,4]
[346036031,1734648638752,-500.0,0.00023994,4]
[346036033,1734648638761,-500.0,0.00023994,4]
[346036035,1734648638771,-500.0,0.00023994,4]
[346036037,1734648638780,-500.0,0.00023994,4]
[346036039,1734648638788,-500.0,0.00023994,4]
[346036041,1734648638798,-1197.0,0.00023994,4]
[346036043,1734648638807,-500.0,0.00023994,4]
[346036045,1734648638816,-500.0,0.00023994,4]
[346036047,1734648638827,-500.0,0.00023994,4]
[346036049,1734648638836,-500.0,0.00023994,4]
[346036051,1734648638845,-1000.0,0.00023994,4]
[346036053,1734648638854,-500.0,0.00023994,4]
[346036055,1734648638863,-500.0,0.00023994,4]
[346036057,1734648638874,-500.0,0.00023994,4]
[346036059,1734648638883,-500.0,0.00023994,4]
[346036061,1734648638893,-500.0,0.00023994,4]
[346036063,1734648638902,-500.0,0.00023994,4]
[346036065,1734648638911,-567.46,0.00023994,4]
[346036067,1734648638920,-500.0,0.00023994,4]
[346036069,1734648638929,-500.0,0.00023994,4]
[346036071,1734648638938,-500.0,0.00023994,4]
[346036073,1734648638947,-500.0,0.00023994,4]
[346036075,1734648638956,-151.0,0.00023994,7]
[346036077,1734648638966,-151.0,0.00023994,7]
[346036079,1734648638979,-500.0,0.00023994,4]
[346036081,1734648638988,-500.0,0.00023994,4]
[346036083,1734648638997,-500.0,0.00023994,4]
[346036085,1734648639007,-500.0,0.00023994,4]
[346036086,1734648639017,-500.0,0.00023994,4]
[346036088,1734648639026,-2931.05,0.00023994,4]
[346036089,1734648639035,-500.0,0.00023994,4]
[346036091,1734648639044,-549.76,0.00023994,4]
[346036093,1734648639053,-500.0,0.00023994,4]
[346036094,1734648639062,-151.646646,0.00023994,7]
[346036095,1734648639071,-500.0,0.00023994,4]
[346036096,1734648639081,-500.0,0.00023994,4]
[346036097,1734648639091,-500.0,0.00023994,4]
[346036098,1734648639100,-500.0,0.00023994,4]
[346036099,1734648639110,-987.24,0.00023994,4]
[346036100,1734648639119,-500.0,0.00023994,4]
[346036101,1734648639128,-500.0,0.00023994,4]
[346036102,1734648639137,-500.0,0.00023994,4]
[346036103,1734648639146,-639.17,0.00023994,4]
[346036104,1734648639156,-500.0,0.00023994,4]
[346036105,1734648639165,-500.0,0.00023994,4]
[346036106,1734648639174,-1221.09,0.00023994,4]
[346036107,1734648639183,-1831.48,0.00023994,4]
[346036108,1734648639192,-500.0,0.00023994,4]
[346036109,1734648639202,-500.0,0.00023994,4]
[346036110,1734648639212,-501.94603247,0.00023995,4]
[346036111,1734648639221,-500.0,0.00023995,4]
[346036112,1734648639231,-500.0,0.00023995,4]
[346036113,1734648639240,-151.0,0.00023995,7]
[346036114,1734648639249,-154.262341,0.00023995,7]
[346036115,1734648639259,-152.100897,0.00023995,7]
[346036116,1734648639268,-154.679021,0.00023995,7]
[346036117,1734648639277,-194.557363,0.00023995,7]
[346036118,1734648639286,-151.0,0.00023995,7]
[346036119,1734648639295,-255.925604,0.00023995,7]
[346036120,1734648639305,-151.0,0.00023995,7]
[346036121,1734648639314,-173.257881,0.00023995,7]
[346036122,1734648639324,-157.400464,0.00023995,7]
[346036123,1734648639333,-151.0,0.00023995,7]
[346036124,1734648639342,-151.0,0.00023995,7]
[346036125,1734648639352,-166.380234,0.00023995,7]
[346036126,1734648639362,-151.0,0.00023995,7]
[346036127,1734648639371,-151.0,0.00023995,7]
[346036128,1734648639381,-151.0,0.00023995,7]
[346036129,1734648639390,-151.0,0.00023995,7]
[346036130,1734648639400,-151.0,0.00023995,7]
[346036131,1734648639409,-151.0,0.00023995,7]
[346036132,1734648639419,-151.0,0.00023995,7]
[346036133,1734648639428,-151.0,0.00023995,7]
[346036134,1734648639438,-151.0,0.00023995,7]
[346036135,1734648639447,-197.867834,0.00023995,7]
[346036136,1734648639456,-197.867834,0.00023995,7]
[346036137,1734648639466,-167.554581,0.00023996,7]
[346036138,1734648639476,-167.554581,0.00023996,7]
[346036139,1734648639485,-167.554581,0.00023996,7]
[346036140,1734648639495,-167.554581,0.00023996,7]
[346036141,1734648639504,-167.554581,0.00023996,7]
[346036142,1734648639514,-167.554581,0.00023996,7]
[346036143,1734648639523,-151.0,0.00023996,7]
[346036144,1734648639534,-151.874192,0.00023996,7]
[346036145,1734648639543,-500.0,0.00023996,4]
[346036146,1734648639553,-500.0,0.00023996,4]
[346036147,1734648639562,-500.0,0.00023996,4]
[346036148,1734648639572,-181.708495,0.00023996,7]
[346036149,1734648639585,-151.0,0.00023996,7]
[346036150,1734648639594,-151.0,0.00023996,7]
[346036151,1734648639603,-151.0,0.00023996,7]
[346036152,1734648639612,-152.59802,0.00023996,7]
[346036153,1734648639621,-216.465532,0.00023996,7]
[346036154,1734648639631,-151.0,0.00023996,7]
[346036155,1734648639641,-151.0,0.00023996,7]
[346036156,1734648639650,-2000.0,0.00023997,2]
[346036157,1734648639660,-200.0,0.00023997,2]
[346036158,1734648639670,-1000.0,0.00023997,2]
[346036159,1734648639679,-500.0,0.00023999,2]
[346036160,1734648639689,-151.0,0.00023999,7]
[346036161,1734648639699,-999.0,0.00023999,2]
[346036162,1734648639709,-151.0,0.00023999,7]
[346036163,1734648639718,-500.0,0.00023999,4]
[346036164,1734648639726,-500.0,0.00023999,4]
[346036165,1734648639736,-500.0,0.00023999,4]
[346036166,1734648639746,-500.0,0.00023999,4]
[346036167,1734648639756,-331.97110734,0.00023999,4]
[346036168,1734648639766,-1035.0,0.00024,2]
[346036169,1734648639775,-163063.15666517,0.00024,3]
[346036170,1734648639799,-11535.92807752,0.00024,3]
[346036171,1734648639810,-3164.07192048,0.00024,2]
[346036172,1734648639822,-849.54270208,0.00024,2]
[346036173,1734648639834,-200.45729792,0.00024,2]
[346036174,1734648639846,-3922.57230208,0.00024,2]
[346036175,1734648639855,-77.42769792,0.00024,5]
[346036176,1734648639866,-9436.2770545,0.00024,5]
[346036177,1734648639878,-2111.93158524,0.00024,5]
[346036178,1734648639889,-4090.01649661,0.00024,5]
[346036179,1734648639900,-920.76715178,0.00024,5]
[346036180,1734648639912,-379.99999,0.00024,5]
[346036181,1734648639924,-1057.7,0.00024,5]
[346036182,1734648639936,-269.24235348,0.00024,5]
[346036183,1734648639947,-511.64050777,0.00024,5]
[346036184,1734648639960,-393.15,0.00024,5]
[346036185,1734648639974,-898.37566193,0.00024,5]
[346036186,1734648639987,-51302.0,0.00024,5]
[346036187,1734648639999,-2100.0,0.00024,5]
[346036188,1734648640121,-416.1774479,0.00023495,2]
[346036189,1734648640152,-29583.8225521,0.00023495,2]
[346036190,1734648640163,-284032.86443453,0.00024,5]
[346036191,1734648640175,-103990.8849794,0.00024,5]
[346036192,1734648640442,-59456.81159505,0.00024,5]
[346036193,1734648640454,-1142.71525243,0.00024,5]
[346036194,1734648640507,-95936.96387907,0.00024,5]
[346036195,1734648640520,-6915.60000093,0.00024,5]
[346036196,1734648640646,-309.00183156,0.00024,5]
[346036197,1734648640658,-25968.09782983,0.00024,5]
[346036198,1734648640672,-2448.40278486,0.00024,5]
[346036199,1734648640683,-2170.14205106,0.00024,5]
[346036200,1734648640695,-342.87326514,0.00024,5]
[346036201,1734648640706,-515.41289527,0.00024,5]
[346036202,1734648640718,-4402.43399998,0.00024,5]
[346036203,1734648640898,-528.01770085,0.00024,5]
[346036204,1734648640910,-947.72946,0.00024,5]
[346036205,1734648640922,-529.1999988,0.00024,5]
[346036206,1734648640934,-27983.0677319,0.00024,5]
[346036207,1734648640950,-425.51001292,0.00023495,2]
[346036208,1734648640963,-489.56499998,0.00023495,2]
[346036209,1734648640978,-450.54181122,0.00023495,2]
[346036212,1734648643440,-510.51529479,0.00023495,2]
[346036213,1734648643451,-500.0,0.00023994,4]
[346036214,1734648643461,-509.31,0.00023994,4]
[346036215,1734648643471,-5056.06559932,0.00024,5]
[346036216,1734648643587,-261.9797,0.00024,5]
[346036217,1734648643599,-390.0012,0.00024,5]
[346036218,1734648643611,-3165.53123548,0.00024,5]
[346036219,1734648643628,-461.809998,0.00024,5]
[346036220,1734648643640,-554.418,0.00024,5]
[346036221,1734648643667,-1329.35891046,0.00024,5]
[346036222,1734648643679,-261.83288792,0.00024,5]
[346036223,1734648643705,-604.0,0.00024,5]
[346036224,1734648643717,-19739.14559364,0.00024,5]
[346036225,1734648643756,-1852.800005,0.00024,5]
[346036230,1734648646337,-151.0,0.00023993,7]
[346036231,1734648646347,-151.0,0.00023994,7]
[346036232,1734648646358,-500.0,0.00023994,4]
[346036233,1734648646368,-94.66666675,0.00024,5]
[346036234,1734648646380,-1680.0,0.00024,5]
[346036235,1734648646396,-5106.55160518,0.00024,5]
[346036236,1734648646408,-432.82035298,0.00024,5]
[346036237,1734648646435,-8016.98931704,0.00024,5]
[346036238,1734648646447,-885.50784777,0.00024,5]
[346036239,1734648646459,-4492.26957466,0.00024,5]
[346036240,1734648646471,-37707.47505729,0.00024,5]
[346036241,1734648646483,-33445.75193152,0.00024,5]
[346036242,1734648646637,-10032.2825889,0.00024,5]
[346036243,1734648646650,-279.92971904,0.00024,5]
[346036244,1734648646661,-17944.25119787,0.00024,5]
[346036245,1734648646671,-2536.74568829,0.00024,5]
[346036246,1734648646682,-7163.59288313,0.00024,5]
[346036247,1734648646697,-77542.80929074,0.00024,5]
[346036248,1734648646708,-3743.72016117,0.00024,5]
[346036249,1734648646722,-482.5,0.00024,5]
[346036250,1734648646734,-946.32170069,0.00024,5]
[346036251,1734648646745,-1875.10000005,0.00024,5]
[346036258,1734649331795,157.6,0.00010137,2]
[346036260,1734649757130,-448.46,0.00020814,2]
[346036261,1734649757151,-266.90777319,0.00021164,2]
[346036262,1734649757171,-608.56411357,0.00021164,2]
[346036263,1734649757191,-500.0,0.00021164,2]
[346036272,1734649810473,500.0,0.00021164,2]
[346036278,1734649831635,-150.0,0.000216,4]
[346036279,1734649831644,-150.0,0.000216,4]
[346036280,1734649831653,-159.62046936,0.00022331,2]
[346036281,1734649831663,-200.0,0.00022409,2]
[346036282,1734649831673,-250.0,0.00022419,2]
[346036283,1734649831682,-281.37741646,0.00022431,2]
[346036284,1734649831691,-250.0,0.00022433,2]
[346036285,1734649831701,-250.0,0.00022441,2]
[346036286,1734649831710,-349.62,0.00022449,2]
[346036287,1734649831719,-250.0,0.00022531,2]
[346036288,1734649831729,-201.48,0.00022608,2]
[346036289,1734649831738,-155.95,0.00022675,30]
[346036290,1734649831747,-4713.08,0.00022739,2]
[346036291,1734649831757,-247.50177877,0.000228,2]
[346036292,1734649831769,-204.83822123,0.000228,2]
[346036293,1734649831778,-1000.0,0.00022819,2]
[346036294,1734649831788,-711.72,0.00022971,2]
[346036295,1734649831798,-391.01790926,0.00022992,2]
[346036296,1734649831807,-448.46,0.00023078,2]
[346036297,1734649831817,-210.58763,0.00023088,7]
[346036298,1734649831826,-928.60266269,0.000231,2]
[346036299,1734649831838,-54.43733731,0.000231,2]
[346036300,1734649831848,-391.01790926,0.00023121,2]
[346036301,1734649831857,-210.58763,0.00023288,7]
[346036302,1734649831866,-500.0,0.00023356,2]
[346036303,1734649831876,-391.01790926,0.00023401,2]
[346036304,1734649831885,-210.58763,0.00023488,7]
[346036305,1734649831895,-300.0,0.000235,8]
[346036306,1734649831904,-150.8844742,0.00023507,2]
[346036307,1734649831914,-1762.06710982,0.000236,5]
[346036308,1734649831925,-1860.88778191,0.000236,5]
[346036309,1734649831937,-1506.6346151,0.000236,5]
[346036310,1734649831949,-1047.59934525,0.000236,5]
[346036311,1734649831968,-4613.93404314,0.000236,5]
[346036312,1734649831978,-600.0,0.000236,8]
[346036313,1734649831987,-6769.928,0.0002366,2]
[346036314,1734649831997,-2030.4749,0.0002366,2]
[346036315,1734649832006,-165.55,0.00023661,2]
[346036316,1734649832015,-210.58763,0.00023688,7]
[346036317,1734649832025,-405.763,0.000237,4]
[346036318,1734649832034,-900.0,0.000237,8]
[346036319,1734649832043,-391.01790927,0.00023718,2]
[346036320,1734649832053,-6600.0829,0.00023719,2]
[346036321,1734649832063,-1500.0,0.00023719,2]
[346036322,1734649832072,-1000.0,0.00023719,2]
[346036323,1734649832081,-1649.9318,0.00023719,2]
[346036324,1734649832090,-37004.0964,0.00023719,2]
[346036325,1734649832100,-201.48,0.00023738,2]
[346036326,1734649832109,-32691.39738373,0.0002376,2]
[346036327,1734649832118,-1008.6671,0.00023788,2]
[346036328,1734649832128,-1000.0,0.00023788,2]
[346036330,1734649832137,-15760.25074112,0.00023791,2]
[346036331,1734649832147,-2837.067,0.00023795,2]
[346036332,1734649832156,-1256.6718,0.000238,2]
[346036333,1734649832166,-1500.0,0.000238,2]
[346036334,1734649832175,-1200.0,0.000238,8]
[346036335,1734649832185,-5000.0,0.000238,2]
[346036336,1734649832195,-506.10673615,0.000238,2]
[346036337,1734649832204,-150.8844742,0.00023836,2]
[346036338,1734649832214,-506.10673613,0.00023879,2]
[346036340,1734649832223,-500.0,0.00023887,4]
[346036342,1734649832232,-500.0,0.00023887,4]
[346036344,1734649832242,-510.32,0.00023887,4]
[346036346,1734649832251,-500.0,0.00023887,4]
[346036348,1734649832260,-500.0,0.00023887,4]
[346036349,1734649832269,-500.0,0.00023887,4]
[346036350,1734649832279,-373.84,0.00023887,4]
[346036352,1734649832288,-621.18,0.00023887,4]
[346036354,1734649832297,-1741.85,0.00023887,4]
[346036356,1734649832306,-500.0,0.00023887,4]
[346036358,1734649832315,-500.0,0.00023887,4]
[346036360,1734649832325,-500.0,0.00023887,4]
[346036361,1734649832334,-500.0,0.00023887,4]
[346036362,1734649832345,-500.0,0.00023887,4]
[346036363,1734649832355,-500.0,0.00023887,4]
[346036364,1734649832369,-500.0,0.00023887,4]
[346036365,1734649832379,-500.0,0.00023887,4]
[346036366,1734649832389,-201.15,0.00023887,4]
[346036367,1734649832398,-500.0,0.00023887,4]
[346036368,1734649832409,-7500.0,0.00023887,2]
[346036369,1734649832419,-100000.0,0.00023888,2]
[346036370,1734649832428,-500.0,0.00023891,4]
[346036371,1734649832439,-505.42,0.00023891,4]
[346036372,1734649832449,-861.1,0.00023891,4]
[346036373,1734649832459,-500.0,0.00023891,4]